[Event "Titled Tuesday Blitz April 19 Late 2022"]
[White "msolleveld"]
[Black "Karttunen, Mika"]
[BlackFideId "502081"]
[WhiteElo "2900"]
[BlackElo "2343"]
[Result "0-1"]
[Round "02"]
[TimeControl "180+1"]
[Date "2022.04.19"]
[WhiteClock "0:00:52"]
[BlackClock "0:00:20"]

1. e4 {[%clk 0:03:00]}  c5 {[%clk 0:02:59]} 2. Nf3 {[%clk 0:03:00]}  d6 {[%clk 0:02:59]} 3. d4 {[%clk 0:03:01]}  cxd4 {[%clk 0:03:00]} 4. Nxd4 {[%clk 0:03:02]}  Nf6 {[%clk 0:03:00]} 5. Nc3 {[%clk 0:03:02]}  a6 {[%clk 0:03:00]} 6. a4 {[%clk 0:03:02]}  e5 {[%clk 0:02:59]} 7. Nf5 {[%clk 0:03:03]}  h6 {[%clk 0:02:44]} 8. Ne3 {[%clk 0:03:02]}  Nc6 {[%clk 0:02:40]} 9. Bc4 {[%clk 0:03:02]}  Be6 {[%clk 0:02:39]} 10. Ned5 {[%clk 0:02:53]}  Rc8 {[%clk 0:02:35]} 11. Be3 {[%clk 0:02:46]}  Be7 {[%clk 0:01:57]} 12. Nxf6+ {[%clk 0:02:33]}  Bxf6 {[%clk 0:01:56]} 13. Bxe6 {[%clk 0:02:34]}  fxe6 {[%clk 0:01:56]} 14. Qh5+ {[%clk 0:02:34]}  Kf8 {[%clk 0:01:54]} 15. O-O {[%clk 0:02:34]}  Qe8 {[%clk 0:01:43]} 16. Qh3 {[%clk 0:02:34]}  g5 {[%clk 0:01:39]} 17. Rad1 {[%clk 0:02:28]}  Nd4 {[%clk 0:01:32]} 18. f4 {[%clk 0:02:24]}  gxf4 {[%clk 0:01:13]} 19. Bxd4 {[%clk 0:02:24]}  exd4 {[%clk 0:01:13]} 20. Rxf4 {[%clk 0:02:24]}  Ke7 {[%clk 0:01:05]} 21. Rdf1 {[%clk 0:01:50]}  Bg5 {[%clk 0:00:58]} 22. Ne2 {[%clk 0:01:34]}  Bxf4 {[%clk 0:00:33]} 23. Nxf4 {[%clk 0:01:35]}  Qg8 {[%clk 0:00:33]} 24. Qb3 {[%clk 0:01:20]}  Rc7 {[%clk 0:00:28]} 25. Qb6 {[%clk 0:01:20]}  Kd7 {[%clk 0:00:27]} 26. Qxd4 {[%clk 0:01:14]}  e5 {[%clk 0:00:22]} 27. Qd3 {[%clk 0:00:58]}  exf4 {[%clk 0:00:22]} 28. Rxf4 {[%clk 0:00:59]}  Kc8 {[%clk 0:00:22]} 29. c3 {[%clk 0:00:57]}  Qe6 {[%clk 0:00:20]} 30. Qd4 {[%clk 0:00:57]}  Qe5 {[%clk 0:00:21]} 31. Qf2 {[%clk 0:00:57]}  Re8 {[%clk 0:00:20]} 32. h3 {[%clk 0:00:55]}  Kb8 {[%clk 0:00:20]} 33. Qh4 {[%clk 0:00:56]}  Qg5 {[%clk 0:00:20]} 34. Qf2 {[%clk 0:00:56]}  Rg7 {[%clk 0:00:20]} 35. Rg4 {[%clk 0:00:54]}  Qe7 {[%clk 0:00:20]} 36. Rf4 {[%clk 0:00:55]}  Reg8 {[%clk 0:00:19]} 37. Kf1 {[%clk 0:00:53]}  Rxg2 {[%clk 0:00:19]} 38. Qxg2 {[%clk 0:00:52]}  Rxg2 {[%clk 0:00:19]} 39. Kxg2 {[%clk 0:00:52]}  Qg5+ {[%clk 0:00:20]} 40. Kf3 {[%clk 0:00:53]}  h5 {[%clk 0:00:19]} 41. h4 {[%clk 0:00:53]}  Qg1 {[%clk 0:00:19]} 42. Ke2 {[%clk 0:00:53]}  Qg2+ {[%clk 0:00:19]} 43. Kd3 {[%clk 0:00:50]}  Qxb2 {[%clk 0:00:18]} 44. Rf5 {[%clk 0:00:51]}  Qb1+ {[%clk 0:00:18]} 45. Ke3 {[%clk 0:00:52]}  Qd1 {[%clk 0:00:19]} 46. Rd5 {[%clk 0:00:51]}  Qe1+ {[%clk 0:00:19]} 47. Kd3 {[%clk 0:00:52]}  Qxh4 {[%clk 0:00:20]} 48. Rxd6 {[%clk 0:00:52]}  Qg3+ {[%clk 0:00:20]} 0-1


[Site "https://www.chess.com"]

[Event "Titled Tuesday Blitz April 19 Late 2022"]
[White "Abdrlauf, Elham"]
[Black "Karttunen, Mika"]
[WhiteFideId "1533533"]
[BlackFideId "502081"]
[WhiteElo "2334"]
[BlackElo "2343"]
[Result "1-0"]
[Round "03"]
[TimeControl "180+1"]
[Date "2022.04.19"]
[WhiteClock "0:01:25"]
[BlackClock "0:00:25"]

1. e4 {[%clk 0:02:56]}  c6 {[%clk 0:03:00]} 2. d4 {[%clk 0:02:56]}  d5 {[%clk 0:03:00]} 3. Nc3 {[%clk 0:02:57]}  dxe4 {[%clk 0:02:57]} 4. Nxe4 {[%clk 0:02:58]}  Bf5 {[%clk 0:02:57]} 5. Ng3 {[%clk 0:02:53]}  Bg6 {[%clk 0:02:57]} 6. h4 {[%clk 0:02:54]}  h6 {[%clk 0:02:57]} 7. Nf3 {[%clk 0:02:54]}  Nd7 {[%clk 0:02:56]} 8. h5 {[%clk 0:02:54]}  Bh7 {[%clk 0:02:56]} 9. Bd3 {[%clk 0:02:55]}  Bxd3 {[%clk 0:02:56]} 10. Qxd3 {[%clk 0:02:55]}  Ngf6 {[%clk 0:02:56]} 11. Bd2 {[%clk 0:02:55]}  e6 {[%clk 0:02:56]} 12. O-O-O {[%clk 0:02:55]}  Qc7 {[%clk 0:02:56]} 13. Qe2 {[%clk 0:02:52]}  Bd6 {[%clk 0:02:48]} 14. Nf5 {[%clk 0:02:50]}  O-O-O {[%clk 0:02:33]} 15. Nxd6+ {[%clk 0:02:49]}  Qxd6 {[%clk 0:02:33]} 16. Ne5 {[%clk 0:02:49]}  Rhf8 {[%clk 0:02:12]} 17. Ba5 {[%clk 0:02:46]}  Rde8 {[%clk 0:01:50]} 18. Nc4 {[%clk 0:02:43]}  Qf4+ {[%clk 0:01:33]} 19. Bd2 {[%clk 0:02:43]}  Qc7 {[%clk 0:01:29]} 20. Bb4 {[%clk 0:02:43]}  c5 {[%clk 0:00:53]} 21. dxc5 {[%clk 0:02:44]}  Kb8 {[%clk 0:00:50]} 22. c6 {[%clk 0:02:44]}  Qxc6 {[%clk 0:00:49]} 23. Bxf8 {[%clk 0:02:43]}  Rxf8 {[%clk 0:00:50]} 24. Ne5 {[%clk 0:02:42]}  Qc7 {[%clk 0:00:48]} 25. Nxd7+ {[%clk 0:02:41]}  Nxd7 {[%clk 0:00:49]} 26. Qd2 {[%clk 0:02:39]}  Nf6 {[%clk 0:00:48]} 27. Kb1 {[%clk 0:02:35]}  Nd5 {[%clk 0:00:48]} 28. Rh4 {[%clk 0:02:33]}  Rc8 {[%clk 0:00:47]} 29. c4 {[%clk 0:02:34]}  Nf6 {[%clk 0:00:44]} 30. Qd6 {[%clk 0:02:32]}  Qxd6 {[%clk 0:00:44]} 31. Rxd6 {[%clk 0:02:32]}  Kc7 {[%clk 0:00:45]} 32. Rd3 {[%clk 0:02:32]}  e5 {[%clk 0:00:44]} 33. Re3 {[%clk 0:02:22]}  Re8 {[%clk 0:00:44]} 34. Rg3 {[%clk 0:02:19]}  Rg8 {[%clk 0:00:40]} 35. Kc2 {[%clk 0:02:19]}  Kd6 {[%clk 0:00:40]} 36. b4 {[%clk 0:02:17]}  Ke6 {[%clk 0:00:40]} 37. Re3 {[%clk 0:02:15]}  Kf5 {[%clk 0:00:40]} 38. f3 {[%clk 0:02:08]}  Rc8 {[%clk 0:00:40]} 39. Kb3 {[%clk 0:02:06]}  b6 {[%clk 0:00:40]} 40. Rh1 {[%clk 0:02:05]}  Rc7 {[%clk 0:00:39]} 41. Rhe1 {[%clk 0:02:04]}  Re7 {[%clk 0:00:39]} 42. Rd3 {[%clk 0:02:04]}  Kf4 {[%clk 0:00:39]} 43. c5 {[%clk 0:01:49]}  bxc5 {[%clk 0:00:38]} 44. bxc5 {[%clk 0:01:50]}  Rc7 {[%clk 0:00:38]} 45. Kc4 {[%clk 0:01:49]}  Nxh5 {[%clk 0:00:34]} 46. Re4+ {[%clk 0:01:45]}  Kg3 {[%clk 0:00:33]} 47. f4+ {[%clk 0:01:38]}  Kxg2 {[%clk 0:00:30]} 48. fxe5 {[%clk 0:01:39]}  g5 {[%clk 0:00:22]} 49. Red4 {[%clk 0:01:37]}  Nf4 {[%clk 0:00:21]} 50. Rd7 {[%clk 0:01:31]}  Nxd3 {[%clk 0:00:20]} 51. Rxc7 {[%clk 0:01:32]}  Nxe5+ {[%clk 0:00:20]} 52. Kd5 {[%clk 0:01:31]}  f6 {[%clk 0:00:21]} 53. Re7 {[%clk 0:01:25]}  Nd3 {[%clk 0:00:20]} 54. Rxa7 {[%clk 0:01:19]}  h5 {[%clk 0:00:19]} 55. c6 {[%clk 0:01:19]}  Nb4+ {[%clk 0:00:19]} 56. Kc5 {[%clk 0:01:20]}  Nxc6 {[%clk 0:00:20]} 57. Kxc6 {[%clk 0:01:21]}  h4 {[%clk 0:00:20]} 58. a4 {[%clk 0:01:21]}  h3 {[%clk 0:00:21]} 59. a5 {[%clk 0:01:21]}  h2 {[%clk 0:00:21]} 60. Rh7 {[%clk 0:01:21]}  h1=Q {[%clk 0:00:21]} 61. Rxh1 {[%clk 0:01:22]}  Kxh1 {[%clk 0:00:21]} 62. a6 {[%clk 0:01:23]}  g4 {[%clk 0:00:22]} 63. a7 {[%clk 0:01:24]}  g3 {[%clk 0:00:23]} 64. a8=Q {[%clk 0:01:24]}  g2 {[%clk 0:00:23]} 65. Qh8+ {[%clk 0:01:25]}  Kg1 {[%clk 0:00:23]} 66. Qxf6 {[%clk 0:01:25]}  Kh2 {[%clk 0:00:23]} 67. Qh4+ {[%clk 0:01:26]}  Kg1 {[%clk 0:00:23]} 68. Kd5 {[%clk 0:01:25]}  Kf1 {[%clk 0:00:24]} 69. Qf4+ {[%clk 0:01:26]}  Ke2 {[%clk 0:00:25]} 70. Qg3 {[%clk 0:01:25]}  Kf1 {[%clk 0:00:25]} 71. Qf3+ {[%clk 0:01:25]} 1-0


[Site "https://www.chess.com"]

[Event "Titled Tuesday Blitz April 19 Late 2022"]
[White "Adury, Anant"]
[Black "Demchenko, Anton"]
[WhiteFideId "30964687"]
[BlackFideId "4160258"]
[WhiteElo "2125"]
[BlackElo "2539"]
[Result "0-1"]
[Round "03"]
[TimeControl "180+1"]
[Date "2022.04.19"]
[WhiteClock "0:02:10"]
[BlackClock "0:02:25"]

1. d4 {[%clk 0:03:00]}  Nf6 {[%clk 0:03:00]} 2. c4 {[%clk 0:02:58]}  d6 {[%clk 0:02:59]} 3. Nc3 {[%clk 0:02:59]}  e5 {[%clk 0:02:59]} 4. dxe5 {[%clk 0:02:59]}  dxe5 {[%clk 0:02:59]} 5. Qxd8+ {[%clk 0:03:00]}  Kxd8 {[%clk 0:03:00]} 6. Bg5 {[%clk 0:02:59]}  Be6 {[%clk 0:02:58]} 7. O-O-O+ {[%clk 0:03:00]}  Kc8 {[%clk 0:02:57]} 8. Nd5 {[%clk 0:02:58]}  Nfd7 {[%clk 0:02:50]} 9. e4 {[%clk 0:02:54]}  f6 {[%clk 0:02:50]} 10. Be3 {[%clk 0:02:54]}  c6 {[%clk 0:02:50]} 11. Nc3 {[%clk 0:02:54]}  Bb4 {[%clk 0:02:41]} 12. Kc2 {[%clk 0:02:52]}  a5 {[%clk 0:02:35]} 13. h3 {[%clk 0:02:50]}  Na6 {[%clk 0:02:33]} 14. Be2 {[%clk 0:02:49]}  Bc5 {[%clk 0:02:31]} 15. Bxc5 {[%clk 0:02:43]}  Ndxc5 {[%clk 0:02:32]} 16. Bg4 {[%clk 0:02:42]}  Kc7 {[%clk 0:02:28]} 17. Bxe6 {[%clk 0:02:41]}  Nxe6 {[%clk 0:02:29]} 18. Nge2 {[%clk 0:02:41]}  Nac5 {[%clk 0:02:30]} 19. a3 {[%clk 0:02:39]}  a4 {[%clk 0:02:29]} 20. g3 {[%clk 0:02:32]}  Rhd8 {[%clk 0:02:23]} 21. Rxd8 {[%clk 0:02:28]}  Rxd8 {[%clk 0:02:24]} 22. Rd1 {[%clk 0:02:27]}  Nd4+ {[%clk 0:02:25]} 23. Nxd4 {[%clk 0:02:11]}  exd4 {[%clk 0:02:26]} 24. Nb1 {[%clk 0:02:10]}  Nxe4 {[%clk 0:02:25]} 0-1


[Site "https://www.chess.com"]

[Event "Titled Tuesday Blitz April 19 Late 2022"]
[White "Alekseenko, Kirill"]
[Black "Leiva, Gianmarco"]
[WhiteFideId "4135539"]
[BlackFideId "3804399"]
[WhiteElo "2682"]
[BlackElo "2323"]
[Result "1-0"]
[Round "03"]
[TimeControl "180+1"]
[Date "2022.04.19"]
[WhiteClock "0:00:09"]
[BlackClock "0:00:04"]

1. e4 {[%clk 0:03:00]}  c5 {[%clk 0:02:58]} 2. Nf3 {[%clk 0:02:56]}  d6 {[%clk 0:02:59]} 3. d4 {[%clk 0:02:56]}  cxd4 {[%clk 0:02:59]} 4. Nxd4 {[%clk 0:02:57]}  Nf6 {[%clk 0:03:00]} 5. Nc3 {[%clk 0:02:57]}  a6 {[%clk 0:03:01]} 6. Be2 {[%clk 0:02:58]}  e5 {[%clk 0:03:00]} 7. Nb3 {[%clk 0:02:58]}  Be7 {[%clk 0:03:00]} 8. O-O {[%clk 0:02:58]}  O-O {[%clk 0:03:00]} 9. Kh1 {[%clk 0:02:57]}  b5 {[%clk 0:02:52]} 10. a4 {[%clk 0:02:56]}  Bb7 {[%clk 0:02:52]} 11. Nd5 {[%clk 0:02:39]}  b4 {[%clk 0:02:29]} 12. Nxf6+ {[%clk 0:02:23]}  Bxf6 {[%clk 0:02:29]} 13. f3 {[%clk 0:02:24]}  a5 {[%clk 0:02:22]} 14. Be3 {[%clk 0:02:22]}  d5 {[%clk 0:02:12]} 15. Nc5 {[%clk 0:01:59]}  Bc6 {[%clk 0:02:12]} 16. exd5 {[%clk 0:01:59]}  Bxd5 {[%clk 0:01:47]} 17. Qd3 {[%clk 0:01:51]}  Bc6 {[%clk 0:01:39]} 18. Rfd1 {[%clk 0:01:45]}  Qxd3 {[%clk 0:01:30]} 19. Bxd3 {[%clk 0:01:46]}  e4 {[%clk 0:01:22]} 20. Nxe4 {[%clk 0:01:37]}  Bxb2 {[%clk 0:01:20]} 21. Rab1 {[%clk 0:01:37]}  Be5 {[%clk 0:01:18]} 22. Nc5 {[%clk 0:01:35]}  g6 {[%clk 0:01:07]} 23. Bc4 {[%clk 0:01:32]}  Kg7 {[%clk 0:00:29]} 24. Kg1 {[%clk 0:01:31]}  Rc8 {[%clk 0:00:29]} 25. Bb3 {[%clk 0:01:06]}  Be8 {[%clk 0:00:24]} 26. f4 {[%clk 0:01:02]}  Bf6 {[%clk 0:00:14]} 27. Ne4 {[%clk 0:01:02]}  Be7 {[%clk 0:00:09]} 28. Bd4+ {[%clk 0:00:57]}  f6 {[%clk 0:00:09]} 29. g4 {[%clk 0:00:58]}  Bc6 {[%clk 0:00:05]} 30. Ng5 {[%clk 0:00:54]}  Kh6 {[%clk 0:00:01]} 31. Ne6 {[%clk 0:00:47]}  Bf3 {[%clk 0:00:01]} 32. g5+ {[%clk 0:00:43]}  fxg5 {[%clk 0:00:02]} 33. fxg5+ {[%clk 0:00:42]}  Bxg5 {[%clk 0:00:03]} 34. Rf1 {[%clk 0:00:39]}  Be4 {[%clk 0:00:03]} 35. Nxg5 {[%clk 0:00:34]}  Kxg5 {[%clk 0:00:04]} 36. Rbe1 {[%clk 0:00:34]}  Bf5 {[%clk 0:00:03]} 37. Kg2 {[%clk 0:00:26]}  Nc6 {[%clk 0:00:04]} 38. Be3+ {[%clk 0:00:27]}  Kf6 {[%clk 0:00:04]} 39. Bc1 {[%clk 0:00:25]}  Re8 {[%clk 0:00:05]} 40. Bb2+ {[%clk 0:00:26]}  Kg5 {[%clk 0:00:05]} 41. Kg3 {[%clk 0:00:26]}  h5 {[%clk 0:00:04]} 42. h4+ {[%clk 0:00:27]}  Kh6 {[%clk 0:00:05]} 43. Rd1 {[%clk 0:00:24]}  Rad8 {[%clk 0:00:05]} 44. Kf4 {[%clk 0:00:23]}  Re4+ {[%clk 0:00:05]} 45. Kg3 {[%clk 0:00:22]}  Rg4+ {[%clk 0:00:05]} 46. Kf3 {[%clk 0:00:23]}  Rxh4 {[%clk 0:00:05]} 47. Rxd8 {[%clk 0:00:22]}  Nxd8 {[%clk 0:00:06]} 48. Bf6 {[%clk 0:00:23]}  Rh3+ {[%clk 0:00:06]} 49. Kg2 {[%clk 0:00:22]}  Ne6 {[%clk 0:00:07]} 50. Rxf5 {[%clk 0:00:17]}  Rxb3 {[%clk 0:00:07]} 51. Re5 {[%clk 0:00:16]}  Rb2 {[%clk 0:00:03]} 52. Rxe6 {[%clk 0:00:15]}  Rxc2+ {[%clk 0:00:04]} 53. Kg3 {[%clk 0:00:16]}  b3 {[%clk 0:00:04]} 54. Rb6 {[%clk 0:00:15]}  Rc4 {[%clk 0:00:04]} 55. Rxb3 {[%clk 0:00:12]}  Rxa4 {[%clk 0:00:04]} 56. Rb8 {[%clk 0:00:12]}  g5 {[%clk 0:00:04]} 57. Rb6 {[%clk 0:00:12]}  Kg6 {[%clk 0:00:03]} 58. Bc3+ {[%clk 0:00:11]}  Kf5 {[%clk 0:00:04]} 59. Rb5+ {[%clk 0:00:11]}  Kg6 {[%clk 0:00:04]} 60. Bxa5 {[%clk 0:00:10]}  Ra3+ {[%clk 0:00:04]} 61. Kf2 {[%clk 0:00:11]}  h4 {[%clk 0:00:04]} 62. Bd2 {[%clk 0:00:11]}  Ra2 {[%clk 0:00:04]} 63. Rxg5+ {[%clk 0:00:10]}  Kf6 {[%clk 0:00:05]} 64. Rd5 {[%clk 0:00:11]}  Ke6 {[%clk 0:00:05]} 65. Rd3 {[%clk 0:00:11]}  Kf5 {[%clk 0:00:05]} 66. Kg2 {[%clk 0:00:11]}  Ke4 {[%clk 0:00:04]} 67. Rd8 {[%clk 0:00:11]}  Ra3 {[%clk 0:00:04]} 68. Re8+ {[%clk 0:00:09]}  Kf5 {[%clk 0:00:04]} 69. Rf8+ {[%clk 0:00:09]}  Kg4 {[%clk 0:00:04]} 70. Rf4+ {[%clk 0:00:09]}  Kh5 {[%clk 0:00:04]} 71. Rf5+ {[%clk 0:00:09]}  Kg4 {[%clk 0:00:04]} 72. Rg5# {[%clk 0:00:09]} 1-0


[Site "https://www.chess.com"]

[Event "Titled Tuesday Blitz April 19 Late 2022"]
[White "Avramidou, Anastasia"]
[Black "Sanal, Vahap"]
[WhiteFideId "4239873"]
[BlackFideId "6300545"]
[WhiteElo "2183"]
[BlackElo "2603"]
[Result "0-1"]
[Round "03"]
[TimeControl "180+1"]
[Date "2022.04.19"]
[WhiteClock "0:00:03"]
[BlackClock "0:01:50"]

1. d4 {[%clk 0:03:00]}  Nf6 {[%clk 0:02:59]} 2. c4 {[%clk 0:03:00]}  e6 {[%clk 0:02:57]} 3. Nc3 {[%clk 0:03:00]}  Bb4 {[%clk 0:02:56]} 4. Qc2 {[%clk 0:03:00]}  O-O {[%clk 0:02:55]} 5. Nf3 {[%clk 0:03:00]}  d5 {[%clk 0:02:54]} 6. g3 {[%clk 0:03:00]}  c5 {[%clk 0:02:53]} 7. Bg2 {[%clk 0:02:47]}  Nc6 {[%clk 0:02:52]} 8. a3 {[%clk 0:02:35]}  Bxc3+ {[%clk 0:02:48]} 9. bxc3 {[%clk 0:02:36]}  dxc4 {[%clk 0:02:47]} 10. e3 {[%clk 0:02:06]}  cxd4 {[%clk 0:02:46]} 11. cxd4 {[%clk 0:02:06]}  b5 {[%clk 0:02:41]} 12. O-O {[%clk 0:02:02]}  Bb7 {[%clk 0:02:41]} 13. a4 {[%clk 0:01:53]}  a6 {[%clk 0:02:40]} 14. Rb1 {[%clk 0:01:51]}  Na7 {[%clk 0:02:32]} 15. Ba3 {[%clk 0:01:50]}  Be4 {[%clk 0:02:31]} 16. Qc3 {[%clk 0:01:30]}  Bxb1 {[%clk 0:02:16]} 17. Rxb1 {[%clk 0:01:29]}  Re8 {[%clk 0:02:13]} 18. Ne5 {[%clk 0:01:29]}  Nd5 {[%clk 0:02:13]} 19. Qc2 {[%clk 0:01:26]}  f6 {[%clk 0:02:12]} 20. Nf3 {[%clk 0:01:17]}  Qa5 {[%clk 0:02:11]} 21. e4 {[%clk 0:01:11]}  Qc3 {[%clk 0:02:09]} 22. Qa2 {[%clk 0:01:02]}  b4 {[%clk 0:02:03]} 23. Bb2 {[%clk 0:00:51]}  b3 {[%clk 0:01:59]} 24. Qa1 {[%clk 0:00:48]}  Qd3 {[%clk 0:01:58]} 25. exd5 {[%clk 0:00:48]}  exd5 {[%clk 0:01:58]} 26. Rd1 {[%clk 0:00:46]}  Qf5 {[%clk 0:01:55]} 27. Nh4 {[%clk 0:00:09]}  Qd7 {[%clk 0:01:54]} 28. Ba3 {[%clk 0:00:08]}  Nc6 {[%clk 0:01:54]} 29. Bc5 {[%clk 0:00:08]}  Rab8 {[%clk 0:01:51]} 30. Qb1 {[%clk 0:00:08]}  c3 {[%clk 0:01:51]} 31. Rc1 {[%clk 0:00:05]}  c2 {[%clk 0:01:47]} 32. Qb2 {[%clk 0:00:05]}  Na5 {[%clk 0:01:48]} 33. Bf1 {[%clk 0:00:03]}  Nc4 {[%clk 0:01:48]} 34. Bxc4 {[%clk 0:00:02]}  dxc4 {[%clk 0:01:49]} 35. Nf3 {[%clk 0:00:03]}  Qf5 {[%clk 0:01:50]} 36. Nd2 {[%clk 0:00:03]}  Qd3 {[%clk 0:01:50]} 0-1


[Site "https://www.chess.com"]

[Event "Titled Tuesday Blitz April 19 Late 2022"]
[White "Balint, Vilmos"]
[Black "Aroesti, Roee"]
[WhiteFideId "718050"]
[BlackFideId "2817144"]
[WhiteElo "2059"]
[BlackElo "2068"]
[Result "0-1"]
[Round "03"]
[TimeControl "180+1"]
[Date "2022.04.19"]
[WhiteClock "0:02:16"]
[BlackClock "0:02:18"]

1. d4 {[%clk 0:02:59]}  Nf6 {[%clk 0:02:59]} 2. Nc3 {[%clk 0:03:00]}  e6 {[%clk 0:02:59]} 3. e4 {[%clk 0:02:59]}  d5 {[%clk 0:02:59]} 4. Bg5 {[%clk 0:02:54]}  dxe4 {[%clk 0:02:56]} 5. Nxe4 {[%clk 0:02:55]}  Be7 {[%clk 0:02:55]} 6. Ng3 {[%clk 0:02:54]}  h6 {[%clk 0:02:55]} 7. Be3 {[%clk 0:02:50]}  O-O {[%clk 0:02:52]} 8. Nf3 {[%clk 0:02:51]}  b6 {[%clk 0:02:52]} 9. Be2 {[%clk 0:02:50]}  Bb7 {[%clk 0:02:53]} 10. a4 {[%clk 0:02:51]}  a6 {[%clk 0:02:52]} 11. O-O {[%clk 0:02:48]}  Nbd7 {[%clk 0:02:53]} 12. a5 {[%clk 0:02:48]}  b5 {[%clk 0:02:52]} 13. b3 {[%clk 0:02:48]}  c5 {[%clk 0:02:47]} 14. c4 {[%clk 0:02:48]}  bxc4 {[%clk 0:02:41]} 15. bxc4 {[%clk 0:02:42]}  cxd4 {[%clk 0:02:41]} 16. Bxd4 {[%clk 0:02:37]}  Nc5 {[%clk 0:02:42]} 17. Rb1 {[%clk 0:02:34]}  Bc6 {[%clk 0:02:34]} 18. Ne5 {[%clk 0:02:34]}  Ba4 {[%clk 0:02:34]} 19. Qe1 {[%clk 0:02:27]}  Qxd4 {[%clk 0:02:33]} 20. Bf3 {[%clk 0:02:23]}  Rab8 {[%clk 0:02:30]} 21. Qe2 {[%clk 0:02:17]}  Bd6 {[%clk 0:02:19]} 22. Rbd1 {[%clk 0:02:16]}  Bxd1 {[%clk 0:02:17]} 23. Rxd1 {[%clk 0:02:16]}  Qxe5 {[%clk 0:02:18]} 0-1


[Site "https://www.chess.com"]

[Event "Titled Tuesday Blitz April 19 Late 2022"]
[White "Beerdsen, Thomas"]
[Black "Al-Tarboush, Ward"]
[WhiteFideId "1030108"]
[BlackFideId "7601450"]
[WhiteElo "2585"]
[BlackElo "2276"]
[Result "1-0"]
[Round "03"]
[TimeControl "180+1"]
[Date "2022.04.19"]
[WhiteClock "0:01:12"]
[BlackClock "0:00:03"]

1. e4 {[%clk 0:02:43]}  e6 {[%clk 0:02:58]} 2. d4 {[%clk 0:02:43]}  d5 {[%clk 0:02:58]} 3. Nc3 {[%clk 0:02:44]}  Nf6 {[%clk 0:02:58]} 4. Bg5 {[%clk 0:02:44]}  dxe4 {[%clk 0:02:58]} 5. Nxe4 {[%clk 0:02:45]}  Be7 {[%clk 0:02:58]} 6. Bxf6 {[%clk 0:02:45]}  gxf6 {[%clk 0:02:58]} 7. Nf3 {[%clk 0:02:45]}  f5 {[%clk 0:02:59]} 8. Nc3 {[%clk 0:02:46]}  a6 {[%clk 0:02:59]} 9. g3 {[%clk 0:02:46]}  b5 {[%clk 0:02:59]} 10. Bg2 {[%clk 0:02:46]}  Bb7 {[%clk 0:02:59]} 11. O-O {[%clk 0:02:46]}  O-O {[%clk 0:02:59]} 12. Qe2 {[%clk 0:02:45]}  b4 {[%clk 0:02:58]} 13. Na4 {[%clk 0:02:44]}  Nd7 {[%clk 0:02:55]} 14. Rad1 {[%clk 0:02:43]}  a5 {[%clk 0:02:52]} 15. c4 {[%clk 0:02:40]}  Nf6 {[%clk 0:02:43]} 16. d5 {[%clk 0:02:37]}  exd5 {[%clk 0:02:09]} 17. Nh4 {[%clk 0:02:34]}  Qd7 {[%clk 0:02:03]} 18. cxd5 {[%clk 0:02:28]}  Ba6 {[%clk 0:01:51]} 19. Qc2 {[%clk 0:02:20]}  Bxf1 {[%clk 0:01:44]} 20. Rxf1 {[%clk 0:02:19]}  Ne4 {[%clk 0:01:42]} 21. Nxf5 {[%clk 0:02:18]}  Qxf5 {[%clk 0:01:34]} 22. Bxe4 {[%clk 0:02:18]}  Qf6 {[%clk 0:01:22]} 23. Bxh7+ {[%clk 0:02:11]}  Kg7 {[%clk 0:01:21]} 24. Be4 {[%clk 0:02:10]}  Bd6 {[%clk 0:01:20]} 25. Bg2 {[%clk 0:02:06]}  Rae8 {[%clk 0:01:19]} 26. b3 {[%clk 0:02:05]}  Re7 {[%clk 0:01:17]} 27. Nc5 {[%clk 0:02:05]}  Rfe8 {[%clk 0:01:17]} 28. Ne4 {[%clk 0:02:02]}  Qg6 {[%clk 0:01:17]} 29. Qb2+ {[%clk 0:02:00]}  Be5 {[%clk 0:01:17]} 30. Qc1 {[%clk 0:02:00]}  Bd4 {[%clk 0:01:12]} 31. Ng5 {[%clk 0:01:35]}  Qf6 {[%clk 0:01:03]} 32. Nh3 {[%clk 0:01:30]}  Bc3 {[%clk 0:01:01]} 33. Nf4 {[%clk 0:01:28]}  Qh6 {[%clk 0:00:36]} 34. Qd1 {[%clk 0:01:21]}  Re1 {[%clk 0:00:30]} 35. Qg4+ {[%clk 0:01:21]}  Kh8 {[%clk 0:00:29]} 36. h4 {[%clk 0:01:19]}  Rxf1+ {[%clk 0:00:28]} 37. Bxf1 {[%clk 0:01:20]}  Re1 {[%clk 0:00:28]} 38. Kg2 {[%clk 0:01:20]}  Qh7 {[%clk 0:00:27]} 39. Bd3 {[%clk 0:01:20]}  Qg7 {[%clk 0:00:16]} 40. Qc8+ {[%clk 0:01:20]}  Qg8 {[%clk 0:00:16]} 41. Qxc7 {[%clk 0:01:21]}  Be5 {[%clk 0:00:15]} 42. Qe7 {[%clk 0:01:14]}  Qg7 {[%clk 0:00:04]} 43. d6 {[%clk 0:01:13]}  Rd1 {[%clk 0:00:03]} 44. d7 {[%clk 0:01:12]} 1-0


[Site "https://www.chess.com"]